Workbook

Sheet Sheet1
A1: 沅江市2022年度巩固拓展脱贫攻坚成果和乡村振兴项目库入库项目分类汇总表
A3: 单位（盖章）： 单位：万元、个、人
A5: 序号 | B5: 项目类型 | C5: 项目个数 | D5: 资金规模和筹资方式 | I5: 受益对象 | O5: 备注
D6: 项目预算总投资 | E6: 其中 | I6: 受益村（个） | J6: 受益户数（户） | K6: 受益人口数（人） | L6: 其中
E7: 财政衔接资金 | F7: 除财政衔接资金外的统筹整合资金 | G7: 其他财政资金 | H7: 其他筹措资金 | L7: 受益脱贫村数（个） | M7: 受益脱贫户数及防止返贫监测对象户数（户） | N7: 受益脱贫人口数及防止返贫监测对象人口数（人）
B8: 总 计 | C8: =C9+C21+C25 -> 1025 | D8: =D9+D21+D25 -> 53916.09 | E8: 47876.94 | H8: 6039.15 | I8: 1837 | J8: 736535 | K8: 2229311 | L8: 842 | M8: 87008 | N8: 216167
B9: 一、产业发展 | C9: =C10+C11+C12+C13+C14 -> 203 | D9: =D10+D11+D12+D13+D14 -> 14102.53 | E9: 11373.5 | H9: 2729.03 | I9: 241 | J9: 70273 | K9: 212468 | L9: 129 | M9: 8430 | N9: 20575
B10: 1.生产项目 | C10: 105 | D10: =E10+F10+G10+H10 -> 8683.03 | E10: 6681 | H10: 2002.03 | I10: 139 | J10: 33805 | K10: 106228 | L10: 75 | M10: 4512 | N10: 10971
B11: 2.加工流通项目 | C11: 28 | D11: =E11+F11+G11+H11 -> 3051 | E11: 2403 | H11: 648 | I11: 32 | J11: 15773 | K11: 47212 | L11: 17 | M11: 1465 | N11: 3662
B12: 3.配套设施项目 | C12: 65 | D12: =E12+F12+G12+H12 -> 2010.5 | E12: 1951.5 | H12: 59 | I12: 67 | J12: 17830 | K12: 52029 | L12: 36 | M12: 2251 | N12: 5521
B13: 4.产业服务支撑项目 | C13: 4 | D13: =E13+F13+G13+H13 -> 170 | E13: 150 | H13: 20 | I13: 3 | J13: 2763 | K13: 6999 | L13: 1 | M13: 202 | N13: 421
B14: 5.金融保险配套项目 | C14: 1 | D14: =E14+F14+G14+H14 -> 188 | E14: 188 | H14: 0 | I14: 0 | J14: 102 | K14: 0 | L14: 0 | M14: 0 | N14: 0
B15: 二、就业项目
B16: 1.务工补助
B17: 2.就业培训
B18: 3.创业
B19: 4.乡村工匠
B20: 5.公益性岗位
B21: 三、乡村建设行动 | C21: =C22+C23+C24 -> 821 | D21: =D22+D23+D24 -> 39792.56 | E21: 36482.44 | H21: 3310.12 | I21: 1593 | J21: 666076 | K21: 2016282 | L21: 713 | M21: 78392 | N21: 195031
B22: 1.农村基础设施 | C22: 783 | D22: =E22+F22+G22+H22 -> 37052.56 | E22: 33800.44 | H22: 3252.12 | I22: 1040 | J22: 355111 | K22: 1083061 | L22: 609 | M22: 39834 | N22: 103867
B23: 2.人居环境整治 | C23: 19 | D23: =E23+F23+G23+H23 -> 1805 | E23: 1805 | H23: 0 | I23: 532 | J23: 294296 | K23: 884130 | L23: 96 | M23: 37482 | N23: 88794
B24: 3.农村公共服务 | C24: 19 | D24: =E24+F24+G24+H24 -> 935 | E24: 877 | H24: 58 | I24: 21 | J24: 16669 | K24: 49091 | L24: 8 | M24: 1076 | N24: 2370
B25: 四、易地搬迁后扶 | C25: 1 | D25: =E25+F25+G25+H25 -> 21 | E25: 21 | H25: 0 | I25: 3 | J25: 186 | K25: 561 | L25: 0 | M25: 186 | N25: 561
B26: 五、巩固三保障成果
B27: 1.住房
B28: 2.教育
B29: 3.健康
B30: 4.综合保障
B31: 六、乡村治理和精神文明建设
B32: 1.乡村治理
B33: 2.农村精神文明建设
B34: 七、项目管理费
B35: 八、其他
B36: 1.少数民族特色村寨建设项
B37: 2.困难群众饮用低氟茶
B38: ……
